bitfinex-derivatives/quotes_ETHF0:USTF0_20250329
["timestamp","ask_amount","ask_price","bid_price","bid_amount"]
[1743266722075,3.2078,1836.8,1836.6,1.08938]
[1743266722377,5.78326,1836.8,1836.7,1.4923]
[1743266722569,4.29706,1836.8,1836.7,1.4923]
[1743266722971,1.08926,1836.8,1836.7,1.4923]
[1743266723477,1.0893,1836.8,1836.6,1.08938]
[1743266723675,0.75095417,1836.9,1836.8,1.08926]
[1743266723869,0.00815417,1836.9,1836.8,1.08926]
[1743266724476,0.00815417,1836.9,1836.8,1.82366]
[1743266724782,0.00815417,1836.9,1836.8,3.22486]
[1743266725580,1.7909,1837.3,1837.1,1.08907]
[1743266725781,1.7909,1837.3,1837.2,1.4012]
[1743266726172,2.495,1837.3,1837.2,1.4012]
[1743266728071,1.406,1837.3,1837.2,2.49022]
[1743266728380,1.08896,1837.3,1837.2,2.1247]
[1743266728581,1.76706,1837.3,1837.2,2.1247]
[1743266730575,1.76706,1837.3,1837.2,1.4012]
[1743266732386,1.08902,1837.2,1837.1,1.09723417]
[1743266732579,1.76711,1837.3,1837.1,2.54343417]
[1743266733387,1.76711,1837.3,1837.2,1.08902]
[1743266733583,4.30488417,1837.4,1837.3,1.08896]
[1743266733780,3.21595417,1837.4,1837.3,1.08896]
[1743266733979,3.21595417,1837.4,1837.3,1.82386]
[1743266734183,4.30485417,1837.4,1837.3,1.82386]
[1743266734378,3.21595417,1837.4,1837.3,3.30006]
[1743266734685,0.00815417,1837.4,1837.3,3.7136799]
[1743266735687,0.00815417,1837.4,1837.3,6.9214799]
[1743266735888,0.00815417,1837.4,1837.3,16.38761902]
[1743266740083,0.00815417,1837.4,1837.3,14.23681902]
[1743266740281,0.00815417,1837.4,1837.3,7.2706799]
[1743266740487,1.47065417,1837.4,1837.3,7.2706799]
[1743266750099,0.00815417,1837.4,1837.3,7.2706799]
[1743266751306,1.42085417,1837.4,1837.3,7.2706799]
[1743266751607,2.50975417,1837.4,1837.3,7.2706799]
[1743266751793,2.50975417,1837.4,1837.3,6.5357799]
[1743266752704,1.42085417,1837.4,1837.3,6.5357799]
[1743266753507,1.08902,1837.2,1837.1,0.00815417]
[1743266753704,1.08902,1837.2,1837.1,1.48775417]
[1743266754107,0.7243,1837.2,1837.1,2.57683417]
[1743266754307,3.24002,1837.2,1837.1,2.57683417]
[1743266754505,2.151,1837.2,1837.1,2.57683417]
[1743266754701,3.24002,1837.2,1837.1,1.48775417]
[1743266755304,3.24002,1837.2,1837.1,2.57683417]
[1743266755608,3.24002,1837.2,1837.1,1.48775417]
[1743266756506,3.24002,1837.2,1837.1,2.57683417]
[1743266757007,3.24002,1837.2,1837.1,1.48775417]
[1743266758409,3.24002,1837.2,1837.1,0.00815417]
[1743266759008,6.44782,1837.2,1837.1,0.00815417]
[1743266759909,6.44782,1837.2,1836.8,2.46493]
[1743266759910,1.0892,1836.9,1836.8,1.3757]
[1743266760112,1.0892,1836.9,1836.8,1.08926]
[1743266760409,1.08926,1836.8,1836.7,4.98998137]
[1743266760708,1.08926,1836.8,1836.7,3.2078]
[1743266761612,2.44586,1836.8,1836.7,3.2078]
[1743266762113,1.3566,1836.8,1836.7,4.29712]
[1743266762311,0.6873,1836.9,1836.8,1.08926]
[1743266762612,1.7765,1836.9,1836.8,3.22066]
[1743266762811,1.7765,1836.9,1836.8,2.1314]
[1743266764012,0.6873,1836.9,1836.8,3.22066]
[1743266764310,1.3566,1837.0,1836.9,1.0892]
[1743266764618,1.3566,1837.0,1836.9,2.4475]
[1743266765406,1.3978,1837.1,1837.0,1.08914]
[1743266765606,1.0892,1837.0,1836.8,5.34202]
[1743266765806,1.0892,1837.0,1836.9,1.3583]
[1743266766107,1.0892,1837.0,1836.9,2.4475]
[1743266766313,2.48692,1837.1,1836.9,1.3583]
[1743266766505,1.77752,1837.1,1837.0,2.55154]
[1743266766707,0.6884,1837.1,1837.0,2.55154]
[1743266767012,1.77748,1837.1,1837.0,2.55154]
[1743266767413,1.77748,1837.1,1837.0,1.4624]
[1743266768417,1.77748,1837.1,1837.0,2.55154]
[1743266768807,1.77748,1837.1,1837.0,1.4624]
[1743266770417,1.77748,1837.1,1837.0,2.55154]
[1743266770717,1.77748,1837.1,1837.0,1.4624]
[1743266771508,1.77748,1837.1,1837.0,2.55154]
[1743266771910,1.77748,1837.1,1837.0,1.4624]
[1743266772912,1.08926,1836.8,1836.7,3.557]
[1743266773412,1.08938,1836.6,1836.5,4.9982]
[1743266773717,1.08944,1836.5,1836.4,59.58436]
[1743266774211,1.08946,1836.5,1836.3,0.723]
[1743266774417,1.08946,1836.5,1836.3,2.1331]
[1743266774615,1.08948,1836.5,1836.3,2.1331]
[1743266774914,1.08948,1836.5,1836.4,1.4101]
[1743266775319,1.76738,1836.5,1836.4,1.4101]
[1743266775816,0.6779,1836.5,1836.4,2.4996]
[1743266776116,1.08944,1836.6,1836.4,2.49958]
[1743266776314,1.76734,1836.6,1836.4,2.49958]
[1743266776615,1.08945,1836.5,1836.3,1.81251]
[1743266776816,1.08945,1836.5,1836.4,1.4714]
[1743266777417,1.08945,1836.5,1836.4,2.5609]
[1743266777617,1.7673,1836.6,1836.4,2.5609]
[1743266777812,1.7673,1836.6,1836.4,2.56086]
[1743266778011,0.6779,1836.6,1836.5,2.56084]
[1743266778215,0.727,1836.7,1836.6,1.08938]
[1743266778518,1.08932,1836.7,1836.6,1.4714]
[1743266779026,1.08944,1836.5,1836.4,4.2422]
[1743266779219,1.08944,1836.5,1836.4,1.3831]
[1743266779614,1.0895,1836.4,1836.3,0.723]
[1743266779816,1.08956,1836.3,1836.2,9.23748]
[1743266780105,2.7233,1836.7,1836.2,9.23748]
[1743266780106,1.08955,1836.4,1836.2,9.23748]
[1743266780314,1.08956,1836.3,1836.2,5.68048]
[1743266780513,2.48826,1836.3,1836.2,5.68048]
[1743266780714,3.21426,1836.3,1836.2,5.68048]
[1743266781113,2.1247,1836.3,1836.2,5.68048]
[1743266781720,2.1247,1836.3,1836.2,6.38488]
[1743266782518,3.21426,1836.3,1836.2,4.5909]
[1743266782719,3.21426,1836.3,1836.0,4.29751]
[1743266782720,1.08967,1836.1,1836.0,4.29751]
[1743266782919,1.08967,1836.1,1836.0,4.64]
[1743266783818,1.08967,1836.1,1836.0,5.72973]
[1743266784215,2.48215,1836.2,1836.0,4.64]
[1743266784416,2.48215,1836.2,1836.1,1.4322]
[1743266784611,1.08965,1836.2,1836.1,1.4322]
[1743266786726,1.08967,1836.1,1836.0,3.2078]
[1743266787528,0.726,1836.3,1836.0,4.29753]
[1743266787529,1.08965,1836.2,1836.0,4.29753]
[1743266787718,0.726,1836.3,1836.0,5.77023]
[1743266787914,1.08962,1836.2,1836.1,1.08966]
[1743266788127,1.08967,1836.1,1836.0,4.6805]
[1743266788325,1.08979,1835.9,1835.6,3.2078]
[1743266788523,3.2078,1835.9,1835.8,1.08985]
[1743266788723,4.29759,1835.9,1835.8,1.08985]
[1743266788923,1.08985,1835.8,1835.7,2.56259]
[1743266789520,1.08985,1835.8,1835.7,1.4727]
[1743266790919,3.2078,1835.9,1835.5,1.8032]
[1743266791122,3.2078,1835.9,1835.3,0.6946]
[1743266791123,3.2078,1835.6,1835.3,0.6946]
[1743266791327,1.09009,1835.4,1835.3,2.1127]
[1743266791624,2.72554,1835.2,1834.5,1.84458859]
[1743266791826,1.09055,1834.7,1834.6,0.44529668]
[1743266792023,4.29835,1834.7,1834.6,0.44529668]
[1743266792225,11.5818,1834.7,1833.8,28.42835752]
[1743266792416,1.09086,1834.1,1833.8,28.42835752]
[1743266792623,1.09086,1834.1,1833.8,27.91700044]
[1743266792826,3.59086,1834.1,1833.8,26.49890044]
[1743266793145,3.59086,1834.1,1833.1,25.14437019]
[1743266793146,1.0914,1833.2,1833.1,25.14437019]
[1743266793319,3.1682164,1831.8,1831.0,7.065]
[1743266793517,3.2078,1830.7,1830.2,292.87411824]
[1743266793722,3.2078,1829.2,1828.7,15.652]
[1743266793927,3.2078,1828.5,1826.9,3.2078]
[1743266794229,3.2078,1828.5,1825.6,11.4135]
[1743266794230,6.30728474,1827.0,1825.9,12.2388]
[1743266794524,3.2078,1826.4,1826.2,32.7248]
[1743266794725,15.78,1826.9,1826.3,50.329]
[1743266794927,3.2078,1826.6,1826.3,50.329]
[1743266795126,3.2078,1827.7,1826.9,13.09019544]
[1743266795327,12.2388,1828.6,1827.3,3.2078]
[1743266795529,3.2078,1829.0,1827.8,2.05423]
[1743266795721,1.09396,1828.9,1828.8,25.53650181]
[1743266795917,1.09396,1828.9,1828.8,6.821958]
[1743266796121,3.2078,1827.8,1825.8,76.45854697]
[1743266796322,3.2078,1826.9,1826.6,4.36989544]
[1743266796527,3.2078,1826.8,1826.7,3.88426327]
[1743266796731,9.906,1827.5,1826.7,3.88426327]
[1743266796926,11.38307014,1827.4,1827.1,3.2078]
[1743266797225,5.46398,1830.9,1827.4,26.24779544]
[1743266797424,3.2078,1829.6,1828.6,3.2078]
[1743266797622,4.63401448,1830.0,1828.8,1.20251]
[1743266797922,1.0939,1829.0,1828.9,50.465]
[1743266798123,13.97475,1831.0,1828.9,3.2078]
[1743266798328,3.2078,1827.9,1826.5,0.548]
[1743266798537,3.2078,1826.6,1825.8,68.72694697]
[1743266798831,3.2078,1822.1,1819.5,3.2078]
[1743266799020,60.20015424,1826.5,1815.7,648.836]
[1743266799021,3.2078,1818.9,1815.7,648.836]
[1743266799223,3.2078,1818.5,1818.0,53.2784]
[1743266799531,3.2078,1819.1,1818.1,106.02974068]
[1743266799731,3.2078,1819.6,1818.2,55.56474068]
[1743266799924,3.2078,1820.8,1818.8,3.2078]
[1743266800125,3.2078,1820.8,1818.3,648.836]
[1743266800126,3.2078,1820.3,1819.2,3.2078]
[1743266800327,4.53316499,1822.9,1820.3,3.35189544]
[1743266800529,3.2078,1821.6,1820.4,48.92438]
[1743266800733,3.2078,1821.4,1819.9,3.2078]
[1743266800927,3.2078,1820.7,1820.5,2.24965544]
[1743266801135,3.2078,1820.7,1818.5,650.053]
[1743266801136,3.2078,1820.6,1818.7,50.559]
[1743266801431,3.2078,1820.6,1820.4,0.00824878]
[1743266801621,0.42619596,1823.1,1820.5,49.1013]
[1743266801828,5.96826237,1823.0,1821.4,51.2784]
[1743266802120,7.25465052,1822.3,1821.5,3.2078]
[1743266802320,3.2078,1823.6,1822.0,1.11787]
[1743266802524,1.09714,1823.6,1823.5,1.85937]
[1743266802727,3.2078,1826.2,1823.5,1.85937]
[1743266802728,12.26026931,1826.1,1824.5,2.1109]
[1743266802927,2.73891,1826.3,1825.4,3.2078]
[1743266803228,0.00822346,1825.5,1825.4,50.559]
[1743266803430,2.74111,1824.8,1823.9,50.559]
[1743266803731,2.74111,1824.8,1823.1,3.2078]
[1743266803732,1.09684,1824.1,1824.0,47.39465]
[1743266803931,1.09684,1824.1,1824.0,5.38868725]
[1743266804232,1.09702,1823.8,1823.7,33.91996876]
[1743266804427,1.09732,1823.3,1823.2,50.589]
[1743266804629,2.74347,1823.2,1822.2,3.2078]
[1743266804828,1.09835,1821.6,1821.5,50.589]
[1743266805027,3.2078,1821.6,1819.8,50.589]
[1743266805233,3.2078,1820.5,1819.8,50.589]
[1743266805431,3.2078,1821.2,1819.7,53.7968]
[1743266805633,3.2078,1821.2,1818.5,1.4501]
[1743266805634,1.09937,1819.9,1819.8,50.589]
[1743266805929,0.00822346,1820.3,1820.1,1.60895]
[1743266806123,6.78179931,1821.0,1820.2,50.589]
[1743266806332,1.10729346,1820.4,1820.3,50.589]
[1743266806523,0.00822346,1820.4,1819.7,50.589]
[1743266806723,3.2078,1819.9,1819.5,50.589]
[1743266806922,3.2078,1820.3,1819.5,52.19795]
[1743266807128,0.00822346,1820.4,1820.1,1.60895]
[1743266807433,3.2078,1820.8,1820.3,1.60895]
[1743266807731,3.2078,1820.4,1818.0,52.655]
[1743266808031,3.2078,1820.4,1815.2,29.874]
[1743266808032,3.2078,1817.7,1816.2,3.2078]
[1743266808231,3.2078,1817.9,1816.7,3.2078]
[1743266808429,3.2078,1817.9,1814.8,0.6781]
[1743266808430,3.2078,1816.5,1815.5,50.655]
[1743266808637,1.10203,1815.6,1814.8,50.655]
[1743266808832,3.2078,1815.3,1814.8,46.0628]
[1743266809028,3.2078,1815.0,1813.8,50.655]
[1743266809230,3.2078,1815.2,1813.9,3.2078]
[1743266809532,3.2078,1816.2,1815.1,65.4349]
[1743266809726,3.2078,1815.3,1815.0,0.00824742]
[1743266809926,0.93012905,1815.3,1815.0,0.00824742]
[1743266810232,5.874,1817.7,1816.7,62.2271]
[1743266810433,3.75845516,1818.4,1817.6,3.2078]
[1743266810637,3.2078,1818.4,1817.1,3.2078]
[1743266810929,1.3784,1819.7,1816.8,68.23269604]
[1743266810930,5.9089722,1818.3,1818.2,3.2078]
[1743266811131,5.9089722,1818.3,1818.1,53.9488]
[1743266811332,6.07596513,1819.5,1818.3,3.2078]
[1743266811542,15.03382065,1820.2,1819.4,57.16895303]
[1743266811830,17.34265092,1819.6,1819.5,52.1982]
[1743266812028,24.7752156,1819.7,1819.5,52.1982]
[1743266812029,24.7752156,1819.7,1819.6,0.00824742]
[1743266812233,16.91304824,1820.2,1819.6,0.00824742]
[1743266812234,3.2078,1821.6,1819.7,43.02350823]
[1743266812429,3.2078,1821.7,1820.9,3.2078]
[1743266812633,6.10395976,1821.6,1821.1,3.2078]
[1743266812835,6.10395976,1821.8,1821.5,3.2078]
[1743266813136,1.09813,1822.0,1821.3,3.2078]
[1743266813326,3.2078,1822.5,1821.5,3.11145441]
[1743266813527,6.17440959,1822.2,1821.6,53.96115303]
[1743266813833,3.2078,1822.2,1821.7,47.5248]
[1743266814040,3.2078,1822.0,1821.5,0.00824742]
[1743266814237,0.09554114,1822.7,1822.0,53.96115303]
[1743266814434,0.09554114,1822.7,1822.2,36.84909864]
[1743266814630,3.2078,1822.9,1822.1,0.68433258]
[1743266814931,3.2078,1822.9,1822.3,3.2078]
[1743266815331,3.2078,1822.4,1821.9,3.2078]
[1743266815536,3.2078,1822.6,1822.1,3.2078]
[1743266815732,1.09781,1822.5,1822.4,0.00824742]
[1743266816036,5.84355057,1822.3,1821.3,3.2078]
[1743266816228,2.74324,1823.4,1821.3,3.2078]
[1743266816229,3.2078,1822.1,1821.7,40.05689864]
[1743266816429,3.2078,1822.0,1821.4,36.84909864]
[1743266816736,3.2078,1822.7,1822.1,37.16580864]
[1743266816936,3.2078,1823.3,1822.4,3.2078]
[1743266817131,0.09552724,1823.7,1823.0,40.37360864]
[1743266817437,3.2078,1824.5,1823.7,37.16580864]
[1743266817641,3.2078,1824.6,1823.8,75.37590728]
[1743266817941,0.09545754,1824.5,1824.3,3.2078]
[1743266818139,3.2078,1825.0,1824.4,36.66593717]
[1743266818332,3.2078,1825.0,1824.3,1.4149]
[1743266818333,3.2078,1825.1,1824.6,33.45813717]
[1743266818532,0.09540271,1825.3,1824.5,36.84909864]
[1743266818533,3.2078,1825.0,1824.5,0.0082239]
[1743266818737,3.2078,1824.8,1824.5,0.0082239]
[1743266818936,0.00816904,1824.9,1824.6,36.84909864]
[1743266819342,0.00816904,1824.9,1824.5,0.0082239]
[1743266819343,3.2078,1824.7,1824.5,0.0082239]
[1743266819534,5.80864751,1824.8,1824.7,33.45813717]
[1743266819734,0.00816904,1824.9,1824.7,50.36562362]
[1743266819935,3.2078,1825.5,1824.8,97.88482362]
[1743266820135,3.30318925,1825.8,1825.2,36.66593717]
[1743266820335,3.01752214,1825.7,1825.1,33.45813717]
[1743266820543,3.01752214,1825.7,1824.8,53.9348]
[1743266820544,3.2078,1825.3,1824.8,64.42668645]
[1743266820734,3.01752214,1825.2,1825.1,36.66593717]
[1743266820934,2.74343573,1825.2,1824.9,13.69968645]
[1743266821237,3.90893578,1825.7,1825.1,28.5228786]
[1743266821440,0.79855241,1825.4,1825.3,3.2078]
[1743266821641,1.02036534,1825.4,1825.3,3.2078]
[1743266821946,1.4416,1826.6,1825.3,3.2078]
[1743266821947,4.30329,1826.4,1825.5,28.5228786]
[1743266822132,0.27397458,1826.3,1826.0,28.5228786]
[1743266822337,3.2078,1826.4,1826.0,28.5228786]
[1743266822535,3.2078,1826.4,1826.1,12.90211431]
[1743266822753,4.90870052,1827.0,1826.3,31.7306786]
[1743266822939,0.27391953,1826.9,1826.6,28.5228786]
[1743266823136,3.2078,1827.2,1826.7,14.36531431]
[1743266823348,3.2078,1827.2,1826.7,4.671]
[1743266823538,3.2078,1826.8,1826.6,0.0082239]
[1743266823739,3.2078,1826.8,1826.1,12.90211431]
[1743266823740,1.09558,1826.2,1826.1,12.90211431]
[1743266823931,3.2078,1826.5,1826.0,17.89019303]
[1743266824137,2.73943,1825.9,1824.6,3.2078]
[1743266824332,2.73943,1825.9,1823.8,12.90211431]
[1743266824333,3.2078,1825.3,1824.5,3.2078]
[1743266824540,3.2078,1824.7,1824.4,50.704]
[1743266824746,3.2078,1825.2,1824.4,50.704]
[1743266824938,3.2078,1824.9,1824.4,50.704]
[1743266825247,9.44703472,1825.8,1825.3,1.09612]
[1743266825540,3.2078,1826.1,1825.4,53.8908]
[1743266825740,3.2078,1826.1,1825.4,50.683]
[1743266825940,3.2078,1825.5,1825.4,96.11393641]
[1743266826246,3.2078,1826.4,1825.4,48.85483201]
[1743266826448,3.2078,1826.6,1825.8,3.2078]
[1743266826740,3.2078,1826.4,1825.6,3.2078]
[1743266826949,3.2078,1826.2,1825.7,1.09586]
[1743266827141,3.2078,1826.5,1826.0,0.0082239]
[1743266827342,3.2078,1826.4,1826.0,0.0082239]
[1743266827536,3.2078,1826.1,1826.0,45.43916031]
[1743266827743,3.2078,1826.5,1826.0,0.0082239]
[1743266827944,3.2078,1826.5,1826.0,34.48031123]
[1743266828242,3.2078,1826.3,1825.8,3.2078]
[1743266828441,3.2078,1826.1,1825.6,3.2078]
[1743266828650,0.63651594,1826.9,1825.4,45.64703201]
[1743266828651,3.2078,1826.6,1825.9,3.2078]
[1743266828950,3.2078,1826.4,1825.9,3.2078]
[1743266829242,3.2078,1826.4,1826.1,0.0082239]
[1743266829243,0.0082239,1826.4,1826.1,0.0082239]
[1743266829546,3.2078,1827.1,1826.3,3.2078]
[1743266829747,11.80681824,1827.5,1826.9,4.30213]
[1743266829748,11.1703023,1827.5,1826.9,4.30213]
[1743266830050,0.34225467,1827.4,1827.3,3.2078]
[1743266830258,0.34221399,1827.4,1826.9,28.06471123]
[1743266830447,1.09501,1827.2,1826.9,31.27251123]
[1743266830640,11.1703023,1827.5,1827.1,3.2078]
[1743266830840,11.1703023,1827.5,1827.3,3.2078]
[1743266831339,11.1703023,1827.5,1827.4,3.2078]
[1743266831545,12.97349164,1827.8,1827.4,3.2078]
[1743266831546,14.82684759,1828.1,1827.4,57.44466]
[1743266831750,0.93413588,1828.0,1827.8,3.2078]
[1743266831946,14.82684759,1828.1,1827.8,3.2078]
[1743266832147,16.57240625,1828.3,1828.2,1.09438]
[1743266832347,16.57240625,1828.3,1828.0,3.2078]
[1743266832556,16.57240625,1828.3,1828.2,3.2078]
[1743266832949,15.20375179,1828.3,1828.2,5.7078]
[1743266833150,21.27966541,1828.8,1828.7,1.09408]
[1743266833355,45.19234507,1829.0,1828.7,5.7078]
[1743266833652,45.19234507,1829.0,1828.9,2.47989618]
[1743266833850,45.19234507,1829.0,1828.9,1.38593618]
[1743266834249,27.82059823,1829.7,1828.9,1.38593618]
[1743266834455,27.82059823,1829.7,1829.2,3.2078]
[1743266834652,3.2078,1829.5,1828.8,3.2078]
[1743266834952,24.61279823,1829.7,1829.3,9.86e-06]
[1743266834953,1.09367,1829.4,1829.3,9.86e-06]
[1743266835143,5.76217,1829.4,1829.3,9.86e-06]
[1743266835346,1.09402,1828.8,1828.7,1.367]
[1743266835647,3.2078,1828.8,1827.7,3.2078]
[1743266835841,3.2078,1828.8,1825.2,17.33609236]
[1743266835842,3.2078,1827.8,1826.8,3.2078]
[1743266836042,3.2078,1826.9,1826.1,3.2078]
[1743266836248,3.2078,1827.9,1826.7,3.2078]
[1743266836450,3.2078,1828.2,1827.7,1.09467]
[1743266836644,3.2078,1827.9,1827.4,3.2078]
[1743266836845,3.2159197,1828.1,1827.6,3.2078]
[1743266837050,3.2159197,1828.1,1827.6,2.5]
[1743266837359,3.2078,1828.7,1828.1,2.73611]
[1743266837650,3.2078,1828.9,1828.3,3.2078]
[1743266837852,3.2078,1828.5,1828.2,58.66506053]
[1743266838053,3.2078,1828.7,1828.2,57.57068053]
[1743266838357,3.2078,1829.4,1828.5,3.2078]
[1743266838548,3.2078,1829.2,1829.0,1.09385]
[1743266838747,3.2078,1829.4,1828.7,3.2078]
[1743266838950,3.2078,1829.4,1829.3,1.09372]
[1743266839150,3.2078,1829.4,1828.7,2.73517]
[1743266839151,3.2078,1829.9,1829.8,1.09337]
[1743266839346,3.2078,1830.1,1829.6,3.2078]
[1743266839653,3.2078,1830.0,1829.3,3.2078]
[1743266839951,3.2078,1829.7,1829.2,50.61419986]
[1743266840160,3.2078,1830.0,1829.9,1.09332]
[1743266840452,3.2078,1830.0,1829.3,7.1854571]
[1743266840656,119.76148729,1829.3,1829.2,51.69978]
[1743266840852,119.76148729,1829.3,1829.2,32.13488513]
[1743266841054,119.76148729,1829.3,1828.8,1.09399]
[1743266841253,3.2078,1829.2,1829.1,0.00819986]
[1743266841551,119.76148729,1829.3,1829.1,0.00819986]
[1743266841755,119.76148729,1829.3,1829.2,1.09378]
[1743266842049,1.09345,1829.8,1829.2,1.09378]
[1743266842050,1.09352,1829.7,1829.2,10.35221885]
[1743266842352,3.2078,1829.6,1829.2,7.14441885]
[1743266842556,3.2078,1829.6,1829.1,3.21599986]
[1743266842758,3.2078,1829.7,1829.3,1.0937]
[1743266842946,3.2078,1829.5,1829.1,0.00819986]
[1743266843150,3.2078,1829.2,1828.9,1.09395]
[1743266843346,57.42986255,1829.3,1829.1,1.09384]
[1743266843548,57.42986255,1829.3,1828.5,5.9433]
[1743266843549,53.72386255,1829.3,1829.2,8.04548314]
[1743266843754,53.72386255,1829.3,1829.2,3.59378]
[1743266843953,46.14546255,1829.3,1829.2,3.59378]
[1743266844156,37.13327255,1829.3,1829.2,10.68992771]
[1743266844352,77.93847862,1829.4,1829.3,1.09372]
[1743266844559,91.14627862,1829.4,1828.7,3.2078]
[1743266844750,3.2078,1828.8,1828.0,4.2483]
[1743266844950,87.93847862,1829.4,1827.9,2.7364]
[1743266844951,3.2078,1829.0,1828.2,3.2078]
[1743266845160,3.2078,1829.3,1828.8,7.02517262]
[1743266845362,4.67129856,1829.2,1828.3,16.02617249]
[1743266845655,0.64657787,1829.9,1828.3,16.02617249]
[1743266845656,57.39832082,1830.0,1829.9,1.09337]
[1743266845858,62.63165036,1830.0,1829.6,1.09353]
[1743266846056,1.09339,1829.9,1829.5,1.09355]
[1743266846258,57.39832082,1830.0,1829.8,1.09339]
[1743266846455,57.39832082,1830.0,1829.4,3.2078]
[1743266846456,56.15981082,1830.0,1829.9,4.30117]
[1743266846652,56.15981082,1830.0,1829.9,8.15221014]
[1743266846855,56.15981082,1830.0,1829.9,7.05884014]
[1743266847155,56.15981082,1830.0,1829.8,1.10159986]
[1743266847156,59.36761082,1830.0,1829.8,0.00819986]
[1743266847355,56.15981082,1830.0,1829.9,1.09337]
[1743266847554,59.36761082,1830.0,1829.9,47.04446275]
[1743266847759,56.15981082,1830.0,1829.9,41.09337]
[1743266848261,55.05259082,1830.0,1829.9,50.77150436]
[1743266848458,9.86e-06,1830.1,1830.0,1.09331]
[1743266848659,9.86e-06,1830.1,1830.0,46.80031]
[1743266848956,0.86424002,1830.1,1830.0,47.17813436]
[1743266849156,0.86423016,1830.1,1830.0,43.59251]
[1743266849351,77.69545952,1831.1,1830.4,2.73256]
[1743266849560,0.27313925,1831.0,1830.5,43.207]
[1743266849857,23.31972909,1830.6,1830.5,36.2932]
[1743266850359,23.31972909,1830.6,1830.5,37.38621]
[1743266850657,23.31972909,1830.6,1830.5,36.2932]
[1743266850854,23.31972909,1830.6,1830.5,37.38621]
[1743266851050,24.41267909,1830.6,1830.5,35.7959086]
[1743266851249,26.52752909,1830.6,1830.5,35.7959086]
[1743266851455,64.06509187,1830.6,1830.5,27.46184706]
[1743266851649,0.48084294,1829.8,1828.7,3.7542]
[1743266851850,3.2078,1830.1,1829.3,3.2078]
[1743266852056,0.65227793,1830.3,1829.4,9.85533154]
[1743266852057,3.2078,1829.9,1829.4,9.85533154]
[1743266852253,3.2078,1830.1,1830.0,1.09328]
[1743266852453,3.48109118,1830.1,1830.0,1.09328]
[1743266852650,3.2078,1830.1,1830.0,3.59328]
[1743266852861,3.2078,1830.1,1830.0,3.59331]
[1743266853061,0.00819986,1830.2,1830.1,1.09325]
[1743266853257,0.00819986,1830.2,1830.0,9.5599601]
[1743266853456,1.09331,1830.0,1829.9,0.00819986]
[1743266853659,4.78195294,1830.0,1829.9,0.00819986]
[1743266853859,1.09371,1829.4,1828.7,53.80053]
[1743266854058,1.0938,1829.2,1828.7,50.519]
[1743266854260,3.2078,1829.1,1829.0,1.0939]
[1743266854561,3.2078,1829.9,1829.8,1.09343]
[1743266854760,118.86724461,1830.1,1830.0,1.09331]
[1743266854761,122.07504461,1830.1,1830.0,1.09331]
[1743266854956,113.40164461,1830.1,1830.0,1.09331]
[1743266855156,95.00168461,1830.1,1830.0,3.59331]
[1743266855458,80.70137742,1830.6,1830.5,1.09301]
[1743266855659,64.53005742,1830.6,1830.5,4.30081]
[1743266855966,62.84361742,1830.6,1830.5,8.30877173]
[1743266856166,62.84361742,1830.6,1829.9,5.47475986]
[1743266856167,66.05141742,1830.6,1830.1,0.5464]
[1743266856355,3.2078,1830.3,1829.9,0.00819986]
[1743266856556,0.48084294,1830.0,1829.5,0.2519]
[1743266856755,3.68864294,1829.6,1828.8,1.09398]
[1743266857054,3.68864294,1828.9,1827.8,3.2078]
[1743266857258,3.2078,1828.1,1827.6,0.5472]
[1743266857457,3.2078,1828.1,1827.5,3.2078]
[1743266857458,3.2078,1828.1,1827.9,7.15792126]
[1743266857757,3.2078,1828.0,1827.8,0.00819986]
[1743266858060,3.2078,1827.9,1827.8,0.00819986]
[1743266858254,3.2078,1827.9,1827.8,1.10281986]
[1743266858459,3.21599986,1828.2,1827.8,2.50819986]
[1743266858668,3.2078,1827.9,1827.8,6.99362078]
[1743266858855,3.2078,1828.1,1827.8,6.76356794]
[1743266859057,0.49164549,1828.0,1827.9,1.09456]
[1743266859371,1.28035145,1828.0,1827.9,1.09456]
[1743266859562,1.28035145,1828.0,1827.9,3.59456]
[1743266859761,1.28035145,1828.0,1827.5,7.25447489]
[1743266859762,2.6484369,1828.0,1827.5,1.0948]
[1743266859961,2.6484369,1828.0,1826.9,2.73787]
[1743266859962,3.2078,1827.7,1827.6,1.09474]
[1743266860156,4.48815145,1827.7,1827.6,1.10293986]
[1743266860463,4.48815145,1827.7,1827.6,0.00819986]
[1743266860464,5.29110251,1827.7,1827.6,0.00819986]
[1743266860968,5.29110251,1827.7,1826.9,3.2078]
[1743266860969,5.0174765,1827.7,1826.9,3.2078]
[1743266861263,3.2078,1827.5,1827.4,1.09486]
[1743266861461,3.68356466,1827.5,1827.4,1.09486]
[1743266861868,4.44447395,1827.5,1827.4,1.09486]
[1743266862171,3.65524558,1827.5,1827.4,1.09486]
[1743266862362,4.16566123,1827.5,1827.4,1.09486]
[1743266862559,4.16561854,1827.5,1827.3,0.00819986]
[1743266862758,1.89410289,1827.4,1827.3,1.10311986]
[1743266862959,2.37478062,1827.4,1827.3,0.00819986]
[1743266863165,2.37478062,1827.4,1827.1,1.09502]
[1743266863465,3.68864294,1827.2,1826.1,3.2078]
[1743266863766,3.2078,1826.2,1825.8,3.28756]
[1743266864168,3.2078,1826.4,1826.3,1.09547]
[1743266864567,1.39949986,1826.5,1826.3,6.9992173]
[1743266864865,0.00819986,1826.5,1826.4,1.09546]
[1743266865070,9.86e-06,1826.5,1826.4,1.09546]
[1743266865264,9.86e-06,1826.5,1826.4,10.87498353]
[1743266865570,9.86e-06,1826.5,1826.4,8.37498353]
[1743266865775,9.86e-06,1826.5,1826.4,14.08278353]
[1743266865969,3.2078,1827.1,1827.0,1.0951]
[1743266867573,4.59,1827.1,1827.0,1.0951]
[1743266868857,0.00819986,1827.2,1827.1,1.09504]
[1743266869263,0.00819986,1827.2,1827.1,8.30900519]
[1743266870066,0.00819986,1827.2,1826.9,0.548]
[1743266870378,4.78377294,1827.0,1826.3,2.73869]